[Event "*** Titled Tuesday Blitz"]
[Site "Chess.com"]
[Date "2020.04.07"]
[Round "9"]
[White "mamonika"]
[Black "Budisavljevic"]
[Result "1-0"]
[WhiteElo "1966"]
[BlackElo "2351"]
[TimeControl "180+1"]
[EndTime "14:45:43 PDT"]
[Termination "mamonika won by checkmate"]

1. d4 {[%clk 0:03:00.9]} 1... Nf6 {[%clk 0:02:59.3]} 2. c4 {[%clk 0:02:57.6]}
2... a6 {[%clk 0:02:58.6]} 3. Nc3 {[%clk 0:02:53.8]} 3... c5 {[%clk 0:02:57.8]}
4. Nf3 {[%clk 0:02:51.5]} 4... cxd4 {[%clk 0:02:56.3]} 5. Nxd4 {[%clk
0:02:52.4]} 5... Qc7 {[%clk 0:02:56.4]} 6. g3 {[%clk 0:02:48.2]} 6... Qxc4
{[%clk 0:02:40.2]} 7. Bg2 {[%clk 0:02:47.6]} 7... e6 {[%clk 0:02:39.1]} 8. O-O
{[%clk 0:02:47.4]} 8... Qc7 {[%clk 0:02:37.8]} 9. Bf4 {[%clk 0:02:23.1]} 9...
Qd8 {[%clk 0:02:28.6]} 10. Rc1 {[%clk 0:02:11.7]} 10... Be7 {[%clk 0:02:26.3]}
11. Ncb5 {[%clk 0:01:38.3]} 11... O-O {[%clk 0:02:11.7]} 12. Bc7 {[%clk
0:01:29.5]} 12... Qe8 {[%clk 0:02:07.9]} 13. Nd6 {[%clk 0:01:29.5]} 13... Bxd6
{[%clk 0:02:06.6]} 14. Bxd6 {[%clk 0:01:30.4]} 14... Nc6 {[%clk 0:02:05.8]} 15.
Nxc6 {[%clk 0:01:27.5]} 15... dxc6 {[%clk 0:02:03.1]} 16. Qb3 {[%clk 0:01:20.3]}
16... Nd5 {[%clk 0:01:51.2]} 17. Rfd1 {[%clk 0:01:04]} 17... b5 {[%clk
0:01:31.9]} 18. Bxf8 {[%clk 0:00:49.3]} 18... Kxf8 {[%clk 0:01:17.5]} 19. e4
{[%clk 0:00:40.9]} 19... Nb6 {[%clk 0:01:12.1]} 20. Qb4+ {[%clk 0:00:24.6]}
20... Kg8 {[%clk 0:01:09.4]} 21. Qc5 {[%clk 0:00:25.1]} 21... Na4 {[%clk
0:01:05.3]} 22. Qxc6 {[%clk 0:00:24.7]} 22... Qxc6 {[%clk 0:01:01.9]} 23. Rd8+
{[%clk 0:00:24.1]} 23... Qe8 {[%clk 0:01:01]} 24. Rxe8# {[%clk 0:00:25]} 1-0

[Event "*** Titled Tuesday Blitz"]
[Site "Chess.com"]
[Date "2020.04.07"]
[Round "9"]
[White "pedromartinez91"]
[Black "tonyq11"]
[Result "1-0"]
[WhiteElo "2485"]
[BlackElo "2273"]
[TimeControl "180+1"]
[EndTime "14:45:46 PDT"]
[Termination "pedromartinez91 won by resignation"]

1. e4 {[%clk 0:03:00.9]} 1... c5 {[%clk 0:02:59.6]} 2. Nc3 {[%clk 0:03:00.5]}
2... e6 {[%clk 0:02:57.6]} 3. f4 {[%clk 0:03:00.3]} 3... d5 {[%clk 0:02:58]} 4.
Nf3 {[%clk 0:02:59.9]} 4... Nc6 {[%clk 0:02:58.2]} 5. Bb5 {[%clk 0:02:59]} 5...
Bd7 {[%clk 0:02:54.8]} 6. d3 {[%clk 0:02:57.6]} 6... a6 {[%clk 0:02:53.8]} 7.
Bxc6 {[%clk 0:02:56.9]} 7... Bxc6 {[%clk 0:02:54.7]} 8. Ne5 {[%clk 0:02:57.3]}
8... Nf6 {[%clk 0:02:42]} 9. Nxc6 {[%clk 0:02:56]} 9... bxc6 {[%clk 0:02:41.9]}
10. Qf3 {[%clk 0:02:49.5]} 10... Be7 {[%clk 0:02:23.8]} 11. O-O {[%clk
0:02:46.4]} 11... O-O {[%clk 0:02:12.2]} 12. Kh1 {[%clk 0:02:31.5]} 12... Rb8
{[%clk 0:02:10.5]} 13. e5 {[%clk 0:02:23.5]} 13... Nd7 {[%clk 0:02:07.2]} 14. b3
{[%clk 0:02:13.5]} 14... Qc7 {[%clk 0:01:59.7]} 15. Bd2 {[%clk 0:02:11.2]} 15...
Rb7 {[%clk 0:01:37.6]} 16. Na4 {[%clk 0:02:05.7]} 16... Rfb8 {[%clk 0:01:30.6]}
17. c4 {[%clk 0:01:59.9]} 17... Rf8 {[%clk 0:01:19.2]} 18. Rae1 {[%clk
0:01:58.8]} 18... Re8 {[%clk 0:01:14.2]} 19. f5 {[%clk 0:01:53.6]} 19... Nxe5
{[%clk 0:01:09.2]} 20. Qg3 {[%clk 0:01:37.9]} 20... Bd6 {[%clk 0:01:03.7]} 21.
Bf4 {[%clk 0:01:36]} 21... f6 {[%clk 0:01:02.1]} 22. fxe6 {[%clk 0:01:35.2]}
22... Rxe6 {[%clk 0:01:00.5]} 23. Bxe5 {[%clk 0:01:26.1]} 23... Bxe5 {[%clk
0:00:57.6]} 24. Qh3 {[%clk 0:01:25.8]} 24... Qe7 {[%clk 0:00:50.1]} 25. Nxc5
{[%clk 0:01:08.8]} 25... Qxc5 {[%clk 0:00:18.2]} 26. Qxe6+ {[%clk 0:01:07.5]}
26... Kh8 {[%clk 0:00:18.5]} 27. Qe8+ {[%clk 0:00:57.9]} 1-0

[Event "*** Titled Tuesday Blitz"]
[Site "Chess.com"]
[Date "2020.04.07"]
[Round "9"]
[White "1977Ivan"]
[Black "Alexander_Donchenko"]
[Result "0-1"]
[WhiteElo "2716"]
[BlackElo "2860"]
[TimeControl "180+1"]
[EndTime "14:45:47 PDT"]
[Termination "Alexander_Donchenko won by resignation"]

1. c4 {[%clk 0:03:00.9]} 1... e5 {[%clk 0:02:58.9]} 2. Nc3 {[%clk 0:03:00.5]}
2... Bb4 {[%clk 0:02:58.9]} 3. Nd5 {[%clk 0:02:59.1]} 3... a5 {[%clk 0:02:59.1]}
4. Nf3 {[%clk 0:02:56.6]} 4... d6 {[%clk 0:02:58.6]} 5. g3 {[%clk 0:02:50.3]}
5... Ne7 {[%clk 0:02:57.7]} 6. Bg2 {[%clk 0:02:44.4]} 6... Nxd5 {[%clk
0:02:56.6]} 7. cxd5 {[%clk 0:02:44]} 7... Bc5 {[%clk 0:02:54.2]} 8. O-O {[%clk
0:02:43.2]} 8... Qf6 {[%clk 0:02:46.5]} 9. d3 {[%clk 0:02:30.5]} 9... O-O {[%clk
0:02:43.1]} 10. Nd2 {[%clk 0:02:30.1]} 10... Qe7 {[%clk 0:02:36.9]} 11. Nc4
{[%clk 0:02:17.7]} 11... Nd7 {[%clk 0:02:33.4]} 12. Bd2 {[%clk 0:02:16.7]} 12...
a4 {[%clk 0:02:32.2]} 13. b4 {[%clk 0:02:13.7]} 13... axb3 {[%clk 0:02:16.4]}
14. axb3 {[%clk 0:02:13.2]} 14... Rxa1 {[%clk 0:02:16.9]} 15. Qxa1 {[%clk
0:02:13.2]} 15... f5 {[%clk 0:02:14.7]} 16. b4 {[%clk 0:02:11.2]} 16... Bd4
{[%clk 0:02:14.6]} 17. Qa5 {[%clk 0:02:09.7]} 17... Nb6 {[%clk 0:02:00.6]} 18.
Na3 {[%clk 0:02:09.1]} 18... e4 {[%clk 0:01:56.9]} 19. Nb5 {[%clk 0:01:59.4]}
19... Bf6 {[%clk 0:01:41.3]} 20. Rc1 {[%clk 0:01:48.6]} 20... Nxd5 {[%clk
0:01:38.2]} 21. Nxc7 {[%clk 0:01:44.9]} 21... Nxc7 {[%clk 0:01:33.1]} 22. Rxc7
{[%clk 0:01:44.7]} 22... Qe6 {[%clk 0:01:22.6]} 23. Qb6 {[%clk 0:01:21]} 23...
Bd8 {[%clk 0:01:19.7]} 24. Bc3 {[%clk 0:01:20]} 24... Rf7 {[%clk 0:01:05.8]} 25.
Rxc8 {[%clk 0:01:01]} 25... Qxc8 {[%clk 0:01:06.7]} 26. Qxd6 {[%clk 0:00:41.5]}
26... Be7 {[%clk 0:01:01.9]} 27. Qd5 {[%clk 0:00:40.2]} 27... Qxc3 {[%clk
0:00:59.5]} 28. dxe4 {[%clk 0:00:34.7]} 28... Qe1+ {[%clk 0:00:56.7]} 29. Bf1
{[%clk 0:00:32.9]} 29... fxe4 {[%clk 0:00:57.6]} 0-1

[Event "*** Titled Tuesday Blitz"]
[Site "Chess.com"]
[Date "2020.04.07"]
[Round "9"]
[White "mc4chess"]
[Black "Cukiero"]
[Result "0-1"]
[WhiteElo "2384"]
[BlackElo "2519"]
[TimeControl "180+1"]
[EndTime "14:45:51 PDT"]
[Termination "Cukiero won by checkmate"]

1. c4 {[%clk 0:03:00.9]} 1... Nf6 {[%clk 0:01:23.4]} 2. Nc3 {[%clk 0:02:59.3]}
2... g6 {[%clk 0:01:23.9]} 3. g3 {[%clk 0:02:59]} 3... Bg7 {[%clk 0:01:24.4]} 4.
Bg2 {[%clk 0:02:59.6]} 4... O-O {[%clk 0:01:25.1]} 5. Nf3 {[%clk 0:03:00]} 5...
c6 {[%clk 0:01:25.8]} 6. O-O {[%clk 0:02:55.9]} 6... e6 {[%clk 0:01:26.1]} 7. d4
{[%clk 0:02:52.5]} 7... d5 {[%clk 0:01:26.4]} 8. cxd5 {[%clk 0:02:45.7]} 8...
exd5 {[%clk 0:01:26]} 9. Bf4 {[%clk 0:02:41.9]} 9... Re8 {[%clk 0:01:25.9]} 10.
Re1 {[%clk 0:02:41.5]} 10... Nbd7 {[%clk 0:01:26.3]} 11. Ne5 {[%clk 0:02:38.4]}
11... Nh5 {[%clk 0:01:24]} 12. Nxd7 {[%clk 0:02:33.2]} 12... Nxf4 {[%clk
0:01:20]} 13. gxf4 {[%clk 0:02:34.1]} 13... Bxd7 {[%clk 0:01:19.3]} 14. e3
{[%clk 0:02:34.6]} 14... Bf5 {[%clk 0:01:19.1]} 15. Qb3 {[%clk 0:02:31.2]} 15...
Qd7 {[%clk 0:01:18.9]} 16. Kh1 {[%clk 0:02:25.8]} 16... a5 {[%clk 0:01:15.1]}
17. Na4 {[%clk 0:02:25.3]} 17... Rad8 {[%clk 0:01:10.4]} 18. Qb6 {[%clk
0:02:20.5]} 18... Qe7 {[%clk 0:01:06.1]} 19. Nc5 {[%clk 0:02:09.7]} 19... Bxd4
{[%clk 0:01:05]} 20. exd4 {[%clk 0:02:03]} 20... Qxe1+ {[%clk 0:01:04.4]} 21.
Rxe1 {[%clk 0:02:03.6]} 21... Rxe1+ {[%clk 0:01:04.4]} 22. Bf1 {[%clk
0:02:04.1]} 22... Rde8 {[%clk 0:00:39.3]} 23. Kg2 {[%clk 0:02:03.4]} 23... Rxf1
{[%clk 0:00:34.7]} 24. Qxb7 {[%clk 0:01:09.6]} 24... Ree1 {[%clk 0:00:34.5]} 25.
h3 {[%clk 0:01:07]} 25... Rg1+ {[%clk 0:00:33.3]} 26. Kf3 {[%clk 0:01:07.1]}
26... Be4+ {[%clk 0:00:33.4]} 27. Nxe4 {[%clk 0:01:02]} 27... dxe4# {[%clk
0:00:33.3]} 0-1

[Event "*** Titled Tuesday Blitz"]
[Site "Chess.com"]
[Date "2020.04.07"]
[Round "9"]
[White "jamengrand"]
[Black "JulAnt"]
[Result "0-1"]
[WhiteElo "2182"]
[BlackElo "2420"]
[TimeControl "180+1"]
[EndTime "14:45:53 PDT"]
[Termination "JulAnt won by resignation"]

1. d4 {[%clk 0:02:59.7]} 1... Nf6 {[%clk 0:02:59.4]} 2. Bg5 {[%clk 0:02:59.8]}
2... e6 {[%clk 0:02:54.6]} 3. e4 {[%clk 0:02:59.2]} 3... h6 {[%clk 0:02:51.1]}
4. Bxf6 {[%clk 0:02:58.7]} 4... Qxf6 {[%clk 0:02:51.2]} 5. c3 {[%clk 0:02:59.6]}
5... c5 {[%clk 0:02:50.3]} 6. d5 {[%clk 0:02:59.7]} 6... exd5 {[%clk 0:02:49.7]}
7. exd5 {[%clk 0:02:59.5]} 7... Bd6 {[%clk 0:02:46.3]} 8. g3 {[%clk 0:02:40.4]}
8... O-O {[%clk 0:02:45.9]} 9. Bg2 {[%clk 0:02:40.3]} 9... b5 {[%clk 0:02:43.1]}
10. Ne2 {[%clk 0:02:38.2]} 10... Bb7 {[%clk 0:02:40.1]} 11. O-O {[%clk
0:02:37.9]} 11... a5 {[%clk 0:02:39.7]} 12. a4 {[%clk 0:02:36.6]} 12... b4
{[%clk 0:02:34.2]} 13. Nd2 {[%clk 0:02:34.4]} 13... Na6 {[%clk 0:02:18.7]} 14.
Ne4 {[%clk 0:02:34.3]} 14... Qe7 {[%clk 0:02:14.7]} 15. Nxd6 {[%clk 0:02:27]}
15... Qxd6 {[%clk 0:02:13.6]} 16. c4 {[%clk 0:02:26.7]} 16... Nc7 {[%clk
0:02:06.7]} 17. Qd2 {[%clk 0:02:19.6]} 17... Rae8 {[%clk 0:02:06.1]} 18. Rae1
{[%clk 0:02:15.4]} 18... Qf6 {[%clk 0:01:55.6]} 19. Nc1 {[%clk 0:02:04.9]} 19...
d6 {[%clk 0:01:53.2]} 20. Nb3 {[%clk 0:02:04.7]} 20... Ra8 {[%clk 0:01:44.2]}
21. Re3 {[%clk 0:02:01.9]} 21... Bc8 {[%clk 0:01:43.9]} 22. h4 {[%clk
0:01:59.9]} 22... Bd7 {[%clk 0:01:43.4]} 23. Rfe1 {[%clk 0:01:57.7]} 23... Bxa4
{[%clk 0:01:41.3]} 24. Nxc5 {[%clk 0:01:36]} 24... dxc5 {[%clk 0:01:37.5]} 25.
d6 {[%clk 0:01:35.3]} 25... Ne6 {[%clk 0:01:37.5]} 26. Bxa8 {[%clk 0:01:33.3]}
26... Rxa8 {[%clk 0:01:38.4]} 27. Qd5 {[%clk 0:01:24.2]} 27... Rd8 {[%clk
0:01:35.7]} 28. Rxe6 {[%clk 0:01:22.8]} 28... fxe6 {[%clk 0:01:35.1]} 29. Rxe6
{[%clk 0:01:22.9]} 29... Qf7 {[%clk 0:01:35.4]} 30. f4 {[%clk 0:01:10.3]} 30...
Bd7 {[%clk 0:01:31.1]} 31. f5 {[%clk 0:01:10.5]} 31... a4 {[%clk 0:01:13.8]} 32.
Qe5 {[%clk 0:01:06.5]} 32... a3 {[%clk 0:01:04.3]} 33. bxa3 {[%clk 0:01:06.2]}
33... bxa3 {[%clk 0:01:05.2]} 34. g4 {[%clk 0:00:57.5]} 34... a2 {[%clk
0:00:59.9]} 35. g5 {[%clk 0:00:56.2]} 35... Bxe6 {[%clk 0:00:55.7]} 36. fxe6
{[%clk 0:00:55.3]} 36... a1=Q+ {[%clk 0:00:56.1]} 0-1

[Event "*** Titled Tuesday Blitz"]
[Site "Chess.com"]
[Date "2020.04.07"]
[Round "9"]
[White "Manukyan_Artak"]
[Black "Teidi96"]
[Result "1/2-1/2"]
[WhiteElo "2398"]
[BlackElo "2234"]
[TimeControl "180+1"]
[EndTime "14:45:53 PDT"]
[Termination "Game drawn by repetition"]

1. e4 {[%clk 0:03:00.9]} 1... c5 {[%clk 0:02:59.7]} 2. Nf3 {[%clk 0:03:00.4]}
2... e6 {[%clk 0:03:00.2]} 3. c3 {[%clk 0:02:59.8]} 3... Nf6 {[%clk 0:02:59.7]}
4. e5 {[%clk 0:02:59.6]} 4... Nd5 {[%clk 0:03:00]} 5. d4 {[%clk 0:02:59.1]} 5...
cxd4 {[%clk 0:03:00.5]} 6. cxd4 {[%clk 0:03:00]} 6... d6 {[%clk 0:03:01.4]} 7.
Nc3 {[%clk 0:03:00.4]} 7... Nxc3 {[%clk 0:02:59.9]} 8. bxc3 {[%clk 0:03:01.3]}
8... Qc7 {[%clk 0:03:00.3]} 9. Bd2 {[%clk 0:03:00.9]} 9... Nd7 {[%clk
0:02:59.2]} 10. Bb5 {[%clk 0:02:59.9]} 10... a6 {[%clk 0:02:54.5]} 11. Bxd7+
{[%clk 0:02:58.3]} 11... Bxd7 {[%clk 0:02:55.4]} 12. O-O {[%clk 0:02:58.6]}
12... d5 {[%clk 0:02:41.7]} 13. a4 {[%clk 0:02:54.8]} 13... Be7 {[%clk
0:02:40.9]} 14. Qb3 {[%clk 0:02:41.6]} 14... b5 {[%clk 0:02:35.6]} 15. axb5
{[%clk 0:02:39.7]} 15... Bxb5 {[%clk 0:02:30.7]} 16. Rfc1 {[%clk 0:02:21.8]}
16... O-O {[%clk 0:02:29]} 17. Bg5 {[%clk 0:02:20.4]} 17... Bxg5 {[%clk
0:02:27.7]} 18. Nxg5 {[%clk 0:02:18.3]} 18... h6 {[%clk 0:02:28.1]} 19. Nf3
{[%clk 0:02:15.2]} 19... Rab8 {[%clk 0:02:21.8]} 20. Qa3 {[%clk 0:02:10.9]}
20... Rfc8 {[%clk 0:02:15.2]} 21. Nd2 {[%clk 0:02:09.6]} 21... Rb6 {[%clk
0:02:11.1]} 22. Nb3 {[%clk 0:02:08.3]} 22... Rc6 {[%clk 0:02:03.3]} 23. Nc5
{[%clk 0:02:07.6]} 23... Rxc5 {[%clk 0:01:54]} 24. dxc5 {[%clk 0:02:05]} 24...
Qxe5 {[%clk 0:01:53.9]} 25. Qb4 {[%clk 0:01:46]} 25... Qc7 {[%clk 0:01:53.2]}
26. g3 {[%clk 0:01:33.5]} 26... Qxc5 {[%clk 0:01:52.6]} 27. Qxc5 {[%clk
0:01:32.9]} 27... Rxc5 {[%clk 0:01:53.5]} 28. f4 {[%clk 0:01:33.4]} 28... Kf8
{[%clk 0:01:50.9]} 29. Kf2 {[%clk 0:01:33.1]} 29... Ke7 {[%clk 0:01:51.1]} 30.
Ke3 {[%clk 0:01:33]} 30... Kd6 {[%clk 0:01:51.3]} 31. Rab1 {[%clk 0:01:30.3]}
31... a5 {[%clk 0:01:42.1]} 32. Kd2 {[%clk 0:01:22.6]} 32... f6 {[%clk
0:01:39.6]} 33. Rb2 {[%clk 0:01:18.6]} 33... a4 {[%clk 0:01:34.9]} 34. Rcb1
{[%clk 0:01:18]} 34... Kc6 {[%clk 0:01:34.2]} 35. Re1 {[%clk 0:01:17.3]} 35...
Kd6 {[%clk 0:01:24.2]} 36. Reb1 {[%clk 0:01:15]} 36... Kc6 {[%clk 0:00:49.9]}
37. Re1 {[%clk 0:01:13.4]} 37... Kd7 {[%clk 0:00:37.6]} 38. Reb1 {[%clk
0:01:07.8]} 38... Kc6 {[%clk 0:00:37.6]} 1/2-1/2

[Event "*** Titled Tuesday Blitz"]
[Site "Chess.com"]
[Date "2020.04.07"]
[Round "9"]
[White "MrrRefrao"]
[Black "Misticpikachu"]
[Result "0-1"]
[WhiteElo "2398"]
[BlackElo "2247"]
[TimeControl "180+1"]
[EndTime "14:45:54 PDT"]
[Termination "Misticpikachu won by resignation"]

1. e4 {[%clk 0:02:15.5]} 1... c5 {[%clk 0:02:47.2]} 2. Nf3 {[%clk 0:02:15.2]}
2... Nc6 {[%clk 0:02:47.1]} 3. d4 {[%clk 0:02:15.6]} 3... cxd4 {[%clk 0:02:48]}
4. Nxd4 {[%clk 0:02:16.5]} 4... Nf6 {[%clk 0:02:40.5]} 5. Nc3 {[%clk 0:02:16.2]}
5... e6 {[%clk 0:02:40.9]} 6. Ndb5 {[%clk 0:02:16.1]} 6... Bb4 {[%clk
0:02:40.9]} 7. a3 {[%clk 0:02:16]} 7... Bxc3+ {[%clk 0:02:40.5]} 8. Nxc3 {[%clk
0:02:16.9]} 8... d5 {[%clk 0:02:41]} 9. exd5 {[%clk 0:02:17.8]} 9... exd5 {[%clk
0:02:41.9]} 10. Bd3 {[%clk 0:02:18.4]} 10... O-O {[%clk 0:02:42.1]} 11. O-O
{[%clk 0:02:19]} 11... d4 {[%clk 0:02:42.1]} 12. Ne2 {[%clk 0:02:19.9]} 12...
Bg4 {[%clk 0:02:41.8]} 13. Re1 {[%clk 0:02:20.7]} 13... Re8 {[%clk 0:02:39.8]}
14. Bg5 {[%clk 0:02:20.3]} 14... Qd6 {[%clk 0:02:38.3]} 15. f3 {[%clk
0:02:17.8]} 15... Bh5 {[%clk 0:02:37.9]} 16. Nf4 {[%clk 0:02:15.2]} 16... Bg6
{[%clk 0:02:37.7]} 17. Nxg6 {[%clk 0:02:14.5]} 17... hxg6 {[%clk 0:02:38.6]} 18.
Qd2 {[%clk 0:02:10.9]} 18... Rxe1+ {[%clk 0:02:33.5]} 19. Rxe1 {[%clk
0:02:10.1]} 19... Re8 {[%clk 0:02:34]} 20. Rxe8+ {[%clk 0:02:09.8]} 20... Nxe8
{[%clk 0:02:34.2]} 21. Qf2 {[%clk 0:02:03.7]} 21... Nf6 {[%clk 0:02:27.5]} 22.
Qh4 {[%clk 0:02:01.4]} 22... Qe5 {[%clk 0:02:21]} 23. Bd2 {[%clk 0:01:58.6]}
23... Ne7 {[%clk 0:02:08.7]} 24. Qf4 {[%clk 0:01:41.1]} 24... Qxf4 {[%clk
0:02:04.8]} 25. Bxf4 {[%clk 0:01:40.9]} 25... Nfd5 {[%clk 0:01:57.6]} 26. Bd6
{[%clk 0:01:31.6]} 26... Nc6 {[%clk 0:01:55.9]} 27. Be4 {[%clk 0:01:29]} 27...
Ne3 {[%clk 0:01:53.6]} 28. Bc5 {[%clk 0:01:20.3]} 28... f5 {[%clk 0:01:48]} 29.
Bxc6 {[%clk 0:01:12.4]} 29... bxc6 {[%clk 0:01:48.9]} 30. Bxd4 {[%clk
0:01:07.1]} 30... Nxc2 {[%clk 0:01:47.9]} 31. Bxa7 {[%clk 0:01:07.5]} 31... Kf7
{[%clk 0:01:47.4]} 32. Kf1 {[%clk 0:01:02.5]} 32... Ke6 {[%clk 0:01:47.1]} 33.
Ke2 {[%clk 0:00:58.7]} 33... Kd5 {[%clk 0:01:47.4]} 34. Kd2 {[%clk 0:00:59]}
34... Na1 {[%clk 0:01:39]} 35. Kc3 {[%clk 0:00:58.1]} 35... c5 {[%clk
0:01:38.8]} 36. Bb8 {[%clk 0:00:56.3]} 36... c4 {[%clk 0:01:37.9]} 37. a4 {[%clk
0:00:31.6]} 37... Nb3 {[%clk 0:01:36.8]} 38. Bc7 {[%clk 0:00:31.5]} 38... Nd4
{[%clk 0:01:32.8]} 39. a5 {[%clk 0:00:28.4]} 39... Nb5+ {[%clk 0:01:30.8]} 40.
Kb4 {[%clk 0:00:28.6]} 40... Nxc7 {[%clk 0:01:31.7]} 0-1

[Event "*** Titled Tuesday Blitz"]
[Site "Chess.com"]
[Date "2020.04.07"]
[Round "9"]
[White "DerKnipser"]
[Black "skoularikii"]
[Result "0-1"]
[WhiteElo "2308"]
[BlackElo "2468"]
[TimeControl "180+1"]
[EndTime "14:45:57 PDT"]
[Termination "skoularikii won by resignation"]

1. e4 {[%clk 0:03:00.9]} 1... e5 {[%clk 0:02:54]} 2. Nc3 {[%clk 0:03:00.8]} 2...
Nc6 {[%clk 0:02:54.1]} 3. f4 {[%clk 0:03:01.6]} 3... d6 {[%clk 0:02:53.4]} 4.
Nf3 {[%clk 0:03:02.2]} 4... exf4 {[%clk 0:02:51.1]} 5. Bc4 {[%clk 0:03:02.4]}
5... Be7 {[%clk 0:02:49.9]} 6. O-O {[%clk 0:03:02.5]} 6... Nf6 {[%clk
0:02:49.4]} 7. d4 {[%clk 0:03:02.4]} 7... O-O {[%clk 0:02:49.5]} 8. Bxf4 {[%clk
0:03:02.7]} 8... Nh5 {[%clk 0:02:46.9]} 9. Be3 {[%clk 0:03:02.6]} 9... Na5
{[%clk 0:02:43.1]} 10. Bd3 {[%clk 0:03:02.5]} 10... g6 {[%clk 0:02:41.3]} 11.
Nd5 {[%clk 0:02:59.5]} 11... Be6 {[%clk 0:02:31.9]} 12. Nxe7+ {[%clk 0:02:59.3]}
12... Qxe7 {[%clk 0:02:32]} 13. Qc1 {[%clk 0:02:33.3]} 13... c5 {[%clk
0:02:26.9]} 14. c3 {[%clk 0:02:28.5]} 14... Rac8 {[%clk 0:02:25.8]} 15. Ng5
{[%clk 0:01:53]} 15... Nc4 {[%clk 0:02:18]} 16. Nxe6 {[%clk 0:01:44.2]} 16...
Nxe3 {[%clk 0:02:16.9]} 17. Nxf8 {[%clk 0:01:39.6]} 17... Qg5 {[%clk 0:02:06.5]}
18. Rf2 {[%clk 0:01:19.4]} 18... cxd4 {[%clk 0:02:05.5]} 19. Nd7 {[%clk
0:01:13.7]} 19... Nf4 {[%clk 0:02:01.6]} 20. Kh1 {[%clk 0:01:01.7]} 20... Nxd3
{[%clk 0:01:54.9]} 21. Nf6+ {[%clk 0:00:57.2]} 21... Kg7 {[%clk 0:01:47.8]} 22.
Qd2 {[%clk 0:00:56.8]} 22... Nxf2+ {[%clk 0:01:47.5]} 23. Qxf2 {[%clk
0:00:57.7]} 23... Qxf6 {[%clk 0:01:47]} 24. Qe2 {[%clk 0:00:48.9]} 24... dxc3
{[%clk 0:01:44.8]} 25. Qxe3 {[%clk 0:00:40]} 25... cxb2 {[%clk 0:01:35.6]} 26.
Rb1 {[%clk 0:00:40.2]} 26... Qc3 {[%clk 0:01:25.6]} 27. Qg1 {[%clk 0:00:21.7]}
27... Qc1 {[%clk 0:01:23]} 28. h3 {[%clk 0:00:21.2]} 28... Qxb1 {[%clk
0:01:18.7]} 29. Qxb1 {[%clk 0:00:19.4]} 29... Rc1+ {[%clk 0:01:18.6]} 0-1

[Event "*** Titled Tuesday Blitz"]
[Site "Chess.com"]
[Date "2020.04.07"]
[Round "9"]
[White "david_gomez"]
[Black "DejanNestor64"]
[Result "1/2-1/2"]
[WhiteElo "2437"]
[BlackElo "2454"]
[TimeControl "180+1"]
[EndTime "14:45:58 PDT"]
[Termination "Game drawn by repetition"]

1. e4 {[%clk 0:03:00.9]} 1... c5 {[%clk 0:02:59]} 2. Nc3 {[%clk 0:02:45.7]} 2...
e6 {[%clk 0:02:58.6]} 3. g3 {[%clk 0:02:45.5]} 3... Nc6 {[%clk 0:02:58.4]} 4.
Bg2 {[%clk 0:02:45.9]} 4... d6 {[%clk 0:02:57.3]} 5. d3 {[%clk 0:02:44.4]} 5...
Nf6 {[%clk 0:02:57.6]} 6. f4 {[%clk 0:02:42.8]} 6... Be7 {[%clk 0:02:57.6]} 7.
Nf3 {[%clk 0:02:42.6]} 7... O-O {[%clk 0:02:57.9]} 8. O-O {[%clk 0:02:42.6]}
8... Nd4 {[%clk 0:02:55.5]} 9. Be3 {[%clk 0:02:41.7]} 9... Nxf3+ {[%clk
0:02:52.5]} 10. Qxf3 {[%clk 0:02:39]} 10... Bd7 {[%clk 0:02:48.8]} 11. h3 {[%clk
0:02:38.6]} 11... Bc6 {[%clk 0:02:48]} 12. Qf2 {[%clk 0:02:35.3]} 12... b6
{[%clk 0:02:35.3]} 13. g4 {[%clk 0:02:35]} 13... d5 {[%clk 0:02:34.2]} 14. e5
{[%clk 0:02:34]} 14... Nd7 {[%clk 0:02:29.6]} 15. Ne2 {[%clk 0:02:32.6]} 15...
Qc7 {[%clk 0:02:23.9]} 16. c3 {[%clk 0:02:32.1]} 16... f6 {[%clk 0:02:20.5]} 17.
d4 {[%clk 0:02:32.1]} 17... Bb5 {[%clk 0:02:15.1]} 18. Qe1 {[%clk 0:02:25]}
18... cxd4 {[%clk 0:02:08.2]} 19. Nxd4 {[%clk 0:02:19.5]} 19... Bxf1 {[%clk
0:02:06.5]} 20. Nxe6 {[%clk 0:02:17.3]} 20... Qc6 {[%clk 0:01:58.8]} 21. Nxf8
{[%clk 0:02:13.2]} 21... Bxg2 {[%clk 0:01:56]} 22. Nxd7 {[%clk 0:02:13]} 22...
Be4 {[%clk 0:01:14.9]} 23. exf6 {[%clk 0:02:04.2]} 23... gxf6 {[%clk 0:01:14.3]}
24. Nxf6+ {[%clk 0:01:53.8]} 24... Bxf6 {[%clk 0:01:13.2]} 25. Qg3 {[%clk
0:01:50.9]} 25... Re8 {[%clk 0:01:11.2]} 26. f5 {[%clk 0:01:49.4]} 26... d4
{[%clk 0:01:05.3]} 27. Bxd4 {[%clk 0:01:44.2]} 27... Bxd4+ {[%clk 0:01:00.6]}
28. cxd4 {[%clk 0:01:45.1]} 28... Qc4 {[%clk 0:00:52.6]} 29. Qe3 {[%clk
0:01:33.7]} 29... Bc6 {[%clk 0:00:50.5]} 30. Qg5+ {[%clk 0:01:32.1]} 30... Kf7
{[%clk 0:00:43.4]} 31. Qh5+ {[%clk 0:01:31.2]} 31... Kg7 {[%clk 0:00:42.3]} 32.
Qg5+ {[%clk 0:01:29.8]} 32... Kf8 {[%clk 0:00:38.8]} 33. Qf6+ {[%clk 0:01:26]}
33... Kg8 {[%clk 0:00:34.7]} 34. Qg5+ {[%clk 0:01:25.7]} 34... Kf7 {[%clk
0:00:31.4]} 35. Qh5+ {[%clk 0:01:25.4]} 35... Kf8 {[%clk 0:00:26.6]} 36. Qh6+
{[%clk 0:01:23.5]} 36... Kg8 {[%clk 0:00:25.1]} 37. Qg5+ {[%clk 0:01:22.9]}
1/2-1/2